bitfinex/quotes_BTCUSD_20241101
["timestamp","ask_amount","ask_price","bid_price","bid_amount"]
[1730432827133,0.57644292,69433.0,69432.0,0.001628]
[1730432827338,0.144056,69417.0,69416.0,0.0789]
[1730432827568,0.20312238,69417.0,69416.0,0.0809]
[1730432827780,0.20312238,69417.0,69416.0,0.0845904]
[1730432827924,0.20312238,69417.0,69416.0,0.002]
[1730432828140,0.144062,69415.0,69413.0,0.0803]
[1730432828354,0.144062,69415.0,69414.0,0.002]
[1730432828558,0.19238692,69415.0,69414.0,0.0056904]
[1730432829838,0.20312707,69415.0,69414.0,0.0056904]
[1730432830044,0.20312707,69415.0,69414.0,0.0045124]
[1730432830290,0.20312707,69415.0,69414.0,0.0065124]
[1730432830751,0.20312707,69415.0,69414.0,0.002822]
[1730432830978,0.144062,69415.0,69414.0,0.000822]
[1730432831217,0.20313826,69415.0,69414.0,0.002822]
[1730432831459,0.20313826,69415.0,69414.0,0.0065124]
[1730432831671,0.20313826,69415.0,69414.0,0.002822]
[1730432831885,0.20313826,69415.0,69414.0,0.00653941]
[1730432832347,0.05907626,69415.0,69414.0,0.00653941]
[1730432833262,0.05907626,69415.0,69414.0,0.002822]
[1730432833492,0.04833512,69415.0,69414.0,0.002822]
[1730432833728,0.04833512,69415.0,69414.0,0.09726802]
[1730432835253,0.048374,69415.0,69414.0,0.09726802]
[1730432835474,0.0268678,69415.0,69414.0,0.09726802]
[1730432835684,0.0349476,69415.0,69414.0,0.09726802]
[1730432835895,0.04838898,69415.0,69414.0,0.09726802]
[1730432837676,0.04838898,69415.0,69414.0,0.24133102]
[1730432838125,0.04838898,69415.0,69414.0,0.09726802]
[1730432838397,0.04838898,69415.0,69414.0,0.46611576]
[1730432838617,0.04839752,69415.0,69414.0,0.54671576]
[1730432842495,0.04842352,69415.0,69414.0,0.54671576]
[1730432843580,0.04842352,69415.0,69414.0,0.48338627]
[1730432846198,0.21769576,69420.0,69414.0,0.33932327]
[1730432846403,0.0483999,69415.0,69414.0,0.48338627]
[1730432846607,0.04840011,69415.0,69414.0,0.48338627]
[1730432849871,0.21769576,69420.0,69414.0,0.33932327]
[1730432850089,0.21769576,69420.0,69419.0,0.002]
[1730432850309,0.23920725,69420.0,69419.0,0.002]
[1730432850511,0.23920725,69420.0,69419.0,0.00572614]
[1730432850512,0.04840083,69420.0,69419.0,0.00572614]
[1730432850748,0.04840083,69420.0,69419.0,0.002]
[1730432850971,0.04840083,69420.0,69419.0,0.00572614]
[1730432851195,0.04840083,69420.0,69419.0,0.0859463]
[1730432851411,0.04840083,69420.0,69419.0,0.08967244]
[1730432851647,0.04840083,69420.0,69419.0,0.00572614]
[1730432851858,0.04840083,69420.0,69419.0,0.41571428]
[1730432852082,0.04840083,69420.0,69419.0,0.49343339]
[1730432852326,0.04840083,69420.0,69419.0,0.59683247]
[1730432852558,0.01344466,69420.0,69419.0,0.59683247]
[1730432852760,0.01344466,69420.0,69419.0,0.63197202]
[1730432853852,0.03495893,69420.0,69419.0,0.63197202]
[1730432854052,0.04840684,69420.0,69419.0,0.63197202]
[1730432854266,0.01344466,69420.0,69419.0,0.63197202]
[1730432854473,0.03495893,69420.0,69419.0,0.63197202]
[1730432855086,0.03495893,69420.0,69419.0,0.63397202]
[1730432855510,0.01344466,69420.0,69419.0,0.63397202]
[1730432857621,0.02151427,69425.0,69424.0,0.156042]
[1730432857821,0.04837701,69425.0,69424.0,0.60703142]
[1730432858028,0.05912746,69425.0,69424.0,0.60778168]
[1730432858229,0.03762658,69425.0,69424.0,0.60778168]
[1730432858772,0.03762658,69425.0,69424.0,0.70668168]
[1730432858972,0.05912746,69425.0,69424.0,0.70668168]
[1730432859185,0.03762658,69425.0,69424.0,0.70668168]
[1730432860004,0.05912746,69425.0,69424.0,0.70668168]
[1730432860227,0.03762658,69425.0,69424.0,0.70668168]
[1730432861046,0.05912746,69425.0,69424.0,0.70668168]
[1730432861269,0.03762658,69425.0,69424.0,0.70668168]
[1730432861496,0.01343807,69425.0,69424.0,0.70668168]
[1730432863530,0.01343807,69425.0,69424.0,0.80668168]
[1730432863732,0.001644,69432.0,69431.0,0.179027]
[1730432863939,0.01508141,69432.0,69431.0,0.63127018]
[1730432864144,0.01508141,69432.0,69431.0,0.63202078]
[1730432866042,0.01508141,69432.0,69431.0,0.63402078]
[1730432866249,0.01508141,69432.0,69431.0,0.73402078]
[1730432866426,0.01508141,69432.0,69431.0,0.73202078]
[1730432867233,0.001644,69432.0,69431.0,0.73202078]
[1730432868873,0.01507338,69432.0,69431.0,0.73202078]
[1730432869057,0.26892684,69432.0,69431.0,0.00363075]
[1730432869285,0.30115498,69432.0,69431.0,0.00363075]
[1730432869510,0.144042,69424.0,69423.0,0.002]
[1730432869663,0.17627014,69424.0,69423.0,0.002]
[1730432869878,0.18969881,69424.0,69423.0,0.002]
[1730432870183,0.144047,69422.0,69421.0,0.002]
[1730432870356,0.18970381,69422.0,69421.0,0.002]
[1730432870588,0.04565681,69422.0,69421.0,0.0069599]
[1730432870801,0.04565681,69422.0,69421.0,0.002]
[1730432871215,0.04565681,69422.0,69421.0,0.02082075]
[1730432871427,0.04565681,69422.0,69421.0,0.0166875]
[1730432871641,0.04565681,69422.0,69421.0,0.02082075]
[1730432871831,0.04565681,69422.0,69421.0,0.00613325]
[1730432872303,0.04565329,69422.0,69421.0,0.00613325]
[1730432873299,0.04551069,69422.0,69421.0,0.00613325]
[1730432875733,0.144035,69428.0,69427.0,0.002]
[1730432875961,0.15746803,69428.0,69427.0,0.002]
[1730432876123,0.17896109,69428.0,69427.0,0.002]
[1730432879285,0.144035,69428.0,69427.0,0.002]
[1730432879526,0.17897356,69428.0,69427.0,0.002]
[1730432879732,0.17897565,69428.0,69427.0,0.002]
[1730432880339,0.03494065,69428.0,69427.0,0.0166045]
[1730432880546,0.03494065,69428.0,69427.0,0.002]
[1730432881606,0.03494065,69428.0,69427.0,0.0056388]
[1730432881820,0.03494065,69428.0,69427.0,0.146036]
[1730432882026,0.03494065,69428.0,69427.0,0.1496748]
[1730432882243,0.03494065,69428.0,69427.0,0.23055048]
[1730432882448,0.03494065,69428.0,69427.0,0.0056388]
[1730432882710,0.40544286,69428.0,69427.0,0.002]
[1730432882946,0.40544286,69428.0,69414.0,0.000822]
[1730432882947,0.249073,69409.0,69408.0,0.01565199]
[1730432883154,0.42074315,69409.0,69408.0,0.01565199]
[1730432883384,0.61790778,69409.0,69408.0,0.01565199]
[1730432883611,0.59642636,69409.0,69408.0,0.01565199]
[1730432884317,0.57490052,69409.0,69408.0,0.01565199]
[1730432884730,0.51048186,69409.0,69408.0,0.01565199]
[1730432885152,0.55341903,69409.0,69408.0,0.01565199]
[1730432885355,0.47554121,69409.0,69408.0,0.01565199]
[1730432885560,0.49466164,69409.0,69408.0,0.01565199]
[1730432885763,0.52109996,69409.0,69408.0,0.01565199]
[1730432886607,0.50770101,69409.0,69408.0,0.01565199]
[1730432886831,0.47554121,69409.0,69408.0,0.01565199]
[1730432887041,0.48625307,69409.0,69408.0,0.01565199]
[1730432888172,0.4996414,69409.0,69408.0,0.01565199]
[1730432888352,0.52106273,69409.0,69408.0,0.01565199]
[1730432889003,0.51606273,69409.0,69408.0,0.01565199]
[1730432889204,0.52106273,69409.0,69408.0,0.01647399]
[1730432889428,0.51606273,69409.0,69408.0,0.01647399]
[1730432889646,0.52105651,69409.0,69408.0,0.01647399]
[1730432891218,0.44442642,69401.0,69385.0,4.985e-05]
[1730432891434,0.44442642,69401.0,69384.0,0.00163]
[1730432891435,0.4675169,69401.0,69384.0,0.00163]
[1730432891621,0.43271346,69401.0,69384.0,0.00163]
[1730432891877,0.48974374,69401.0,69384.0,0.00163]
[1730432892083,0.48960111,69401.0,69384.0,0.00163]
[1730432892523,0.46732366,69401.0,69384.0,0.00163]
[1730432892734,0.32886841,69401.0,69384.0,0.00163]
[1730432892952,0.32886841,69401.0,69388.0,0.144117]
[1730432893172,0.32886841,69401.0,69384.0,0.00163]
[1730432893390,0.32886841,69401.0,69387.0,0.144118]
[1730432893837,0.32886841,69401.0,69385.0,0.144122]
[1730432894130,0.32886841,69401.0,69387.0,0.144119]
[1730432894335,0.33955565,69401.0,69387.0,0.144119]
[1730432894546,0.33955565,69401.0,69384.0,0.00451211]
[1730432894770,0.33955565,69401.0,69388.0,0.144116]
[1730432894987,0.33955565,69401.0,69386.0,0.005]
[1730432895211,0.33955565,69401.0,69388.0,0.144115]
[1730432895425,0.30480282,69401.0,69388.0,0.144115]
[1730432895649,0.32884366,69401.0,69388.0,0.144115]
[1730432896733,0.33952922,69401.0,69388.0,0.144115]
[1730432897136,0.35021344,69401.0,69388.0,0.144115]
[1730432897390,0.37247503,69401.0,69388.0,0.144115]
[1730432897612,0.35021344,69401.0,69388.0,0.144115]
[1730432898070,0.35021344,69401.0,69386.0,0.14912]
[1730432898510,0.35021344,69401.0,69386.0,0.005]
[1730432898741,0.35021344,69401.0,69387.0,0.144118]
[1730432898970,0.35021344,69401.0,69388.0,0.144116]
[1730432899224,0.18940375,69401.0,69388.0,0.144116]
[1730432899669,0.17871819,69401.0,69388.0,0.144116]
[1730432899874,0.1894169,69401.0,69388.0,0.144116]
[1730432900286,0.1894169,69401.0,69389.0,0.144114]
[1730432900677,0.1894169,69401.0,69388.0,0.144116]
[1730432901093,0.1894169,69401.0,69389.0,0.144114]
[1730432901309,0.1894169,69401.0,69386.0,0.14912]
[1730432901494,0.1894169,69401.0,69386.0,0.005]
[1730432901811,0.1894169,69401.0,69387.0,0.144119]
[1730432902506,0.14394737,69401.0,69387.0,0.144119]
[1730432902730,0.17873183,69401.0,69387.0,0.144119]
[1730432902920,0.17873183,69401.0,69388.0,0.144115]
[1730432903070,0.17873183,69401.0,69390.0,0.144112]
[1730432903285,0.04548718,69401.0,69398.0,0.15016821]
[1730432903469,0.04548718,69401.0,69400.0,0.04579332]
[1730432903668,0.01337864,69401.0,69400.0,0.19302354]
[1730432904255,0.01337864,69401.0,69400.0,0.35947879]
[1730432905911,0.144072,69410.0,69401.0,0.023]
[1730432906125,0.21769576,69404.0,69401.0,0.30554425]
[1730432906291,0.01339441,69403.0,69402.0,0.08338458]
[1730432906490,0.03483353,69403.0,69402.0,0.10638458]
[1730432906759,0.03483353,69403.0,69402.0,0.02610148]
[1730432909282,0.04556349,69403.0,69402.0,0.02610148]
[1730432910939,0.04556349,69403.0,69402.0,0.17018948]
[1730432911154,0.04556349,69403.0,69402.0,0.65339444]
[1730432911353,0.01339751,69403.0,69402.0,0.75051294]
[1730432911557,0.21769576,69419.0,69402.0,0.75051294]
[1730432911558,0.02146093,69417.0,69416.0,0.167059]
[1730432911758,0.02146093,69417.0,69416.0,0.53588246]
[1730432911759,0.03487503,69417.0,69416.0,0.53588246]
[1730432911979,0.03487503,69417.0,69416.0,0.53892504]
[1730432912192,0.03487503,69417.0,69416.0,0.39486604]
[1730432912338,0.0456115,69417.0,69416.0,0.39486604]
[1730432912543,0.0456115,69417.0,69416.0,0.32840363]
[1730432913411,0.0456115,69417.0,69416.0,0.47246263]
[1730432913618,0.03487503,69417.0,69416.0,0.47246263]
[1730432913836,0.04560892,69417.0,69416.0,0.47246263]
[1730432914046,0.04560892,69417.0,69416.0,0.62263084]
[1730432916661,0.0348593,69417.0,69416.0,0.62263084]
[1730432916856,0.04558524,69417.0,69416.0,0.62263084]
[1730432917392,0.0348593,69417.0,69416.0,0.62263084]
[1730432917613,0.05630993,69417.0,69416.0,0.62263084]
[1730432917991,0.04558524,69417.0,69416.0,0.62263084]
[1730432918530,0.04558524,69417.0,69416.0,0.73363084]
[1730432918938,0.02413336,69417.0,69416.0,0.73363084]
[1730432919765,0.01340742,69417.0,69416.0,0.73363084]
[1730432920379,0.02145188,69425.0,69422.0,0.005]
[1730432920579,0.02145188,69425.0,69424.0,0.144042]
[1730432920779,0.03484978,69425.0,69424.0,0.40767026]
[1730432920988,0.03484978,69425.0,69424.0,0.41967026]
[1730432921140,0.0133979,69425.0,69424.0,0.50261246]
[1730432922675,0.001644,69428.0,69427.0,0.154036]
[1730432922890,0.001644,69428.0,69427.0,0.57053968]
[1730432923097,0.001644,69428.0,69427.0,0.67458153]
[1730432923735,0.001644,69428.0,69427.0,0.67258153]
[1730432925915,0.001644,69428.0,69427.0,0.84358153]
[1730432926116,0.001644,69428.0,69427.0,0.84158153]
[1730432928198,0.001644,69428.0,69427.0,0.00329353]
[1730432928199,0.145678,69428.0,69427.0,0.00329353]
[1730432928427,0.288084,69424.0,69402.0,4.985e-05]
[1730432928625,0.288084,69424.0,69401.0,0.005822]
[1730432928626,0.144071,69410.0,69409.0,0.21769576]
[1730432928846,0.034791,69410.0,69403.0,0.13845525]
[1730432928993,0.15016821,69406.0,69403.0,0.13845525]
[1730432929224,0.15016821,69406.0,69401.0,0.00587185]
[1730432929225,0.21769576,69404.0,69401.0,0.00087185]
[1730432929485,0.29425621,69402.0,69401.0,0.00087185]
[1730432929643,0.32904721,69402.0,69401.0,0.000822]
[1730432929847,0.35313267,69402.0,69401.0,0.000822]
[1730432930747,0.35313492,69402.0,69401.0,0.000822]
[1730432933119,0.05887871,69402.0,69401.0,0.000822]
[1730432935582,0.05888911,69402.0,69401.0,0.000822]
[1730432935799,0.20905732,69402.0,69401.0,0.000822]
[1730432937724,0.19834705,69402.0,69401.0,0.000822]
[1730432937934,0.20905512,69402.0,69401.0,0.000822]
[1730432938421,0.33173314,69402.0,69401.0,0.000822]
[1730432938634,0.35314312,69402.0,69401.0,0.000822]
[1730432938838,0.32905406,69402.0,69401.0,0.000822]
[1730432939051,0.31834707,69402.0,69401.0,0.000822]
[1730432939220,0.35314498,69402.0,69401.0,0.000822]
[1730432939425,0.39864953,69402.0,69401.0,0.000822]
[1730432939623,0.38526571,69402.0,69401.0,0.000822]
[1730432939860,0.18959255,69402.0,69401.0,0.000822]
[1730432940065,0.16817864,69402.0,69401.0,0.000822]
[1730432940324,0.18156118,69402.0,69401.0,0.000822]
[1730432940553,0.01338369,69402.0,69401.0,0.28836725]
[1730432940754,0.01338369,69402.0,69401.0,0.21034928]
[1730432940932,0.02409075,69402.0,69401.0,0.14427725]
[1730432942680,0.02409075,69402.0,69401.0,0.28836725]
[1730432944373,0.02409075,69402.0,69401.0,0.14427725]
[1730432944857,0.02409075,69402.0,69401.0,0.13927725]
[1730432945265,0.02408859,69402.0,69401.0,0.13927725]
[1730432945948,0.02408859,69402.0,69401.0,0.16894078]
[1730432947499,0.00846767,69402.0,69401.0,0.16894078]
[1730432947918,0.16548946,69407.0,69401.0,0.16894078]
[1730432948163,0.02141046,69407.0,69401.0,0.31302978]
[1730432948408,0.02141046,69409.0,69404.0,0.005]
[1730432948633,0.0965,69426.0,69404.0,0.005]
[1730432948634,0.21769576,69412.0,69405.0,0.13845525]
[1730432948845,0.36176276,69412.0,69405.0,0.13845525]
[1730432949051,0.02141131,69411.0,69405.0,0.13845525]
[1730432949266,0.02141131,69411.0,69406.0,0.03230238]
[1730432949476,0.36176276,69412.0,69406.0,0.17075763]
[1730432949978,0.144064,69414.0,69406.0,0.17075763]
[1730432950197,0.16548684,69414.0,69407.0,0.06080086]
[1730432950419,0.144062,69415.0,69407.0,0.06080086]
[1730432950630,0.288118,69416.0,69407.0,0.06080086]
[1730432950840,0.144064,69414.0,69408.0,0.06688085]
[1730432951552,0.16548084,69417.0,69409.0,0.13845525]
[1730432951771,0.43826421,69422.0,69409.0,0.13845525]
[1730432951772,0.16547884,69418.0,69410.0,0.144071]
[1730432952018,0.02142284,69418.0,69411.0,0.13845525]
[1730432952254,0.144055,69418.0,69411.0,0.13845525]
[1730432952454,0.144059,69416.0,69411.0,0.13845525]
[1730432952655,0.02142284,69417.0,69411.0,0.13845525]
[1730432952891,0.144061,69415.0,69411.0,0.13845525]
[1730432953110,0.144079,69407.0,69399.0,0.005]
[1730432953352,0.144079,69407.0,69402.0,0.01949364]
[1730432954227,0.02143743,69409.0,69401.0,0.16894078]
[1730432954228,0.21769576,69403.0,69401.0,0.000822]
[1730432954464,0.15016821,69405.0,69401.0,0.000822]
[1730432954465,0.144088,69402.0,69401.0,0.000822]
[1730432955366,0.15750108,69402.0,69401.0,0.000822]
[1730432955594,0.17893851,69402.0,69401.0,0.000822]
[1730432956637,0.16552543,69402.0,69401.0,0.000822]
[1730432956839,0.17896198,69402.0,69401.0,0.000822]
[1730432959459,0.19242104,69402.0,69401.0,0.000822]
[1730432960553,0.144088,69402.0,69401.0,0.000822]
[1730432960754,0.19253771,69402.0,69401.0,0.000822]
[1730432960877,0.144088,69402.0,69401.0,0.000822]
[1730432961083,0.19253662,69402.0,69401.0,0.000822]
[1730432964517,0.19253514,69402.0,69401.0,0.000822]
[1730432966229,0.04844714,69402.0,69401.0,0.000822]
[1730432966916,0.19253514,69402.0,69401.0,0.000822]
[1730432967347,0.19253514,69402.0,69401.0,0.0156401]
[1730432967553,0.19253514,69402.0,69401.0,0.000822]
[1730432968378,0.01345753,69402.0,69401.0,0.000822]
[1730432968597,0.04832988,69402.0,69401.0,0.144912]
[1730432969434,0.04832988,69402.0,69401.0,0.000822]
[1730432970644,0.04832988,69402.0,69401.0,0.144912]
[1730432970849,0.04997388,69402.0,69401.0,0.33279191]
[1730432971054,0.04997388,69402.0,69401.0,0.35579191]
[1730432971258,0.04997388,69402.0,69401.0,0.36079191]
[1730432971468,0.03662108,69402.0,69401.0,0.44369191]
[1730432971674,0.03662108,69402.0,69401.0,0.44569191]
[1730432972269,0.01509672,69402.0,69401.0,0.44569191]
[1730432972511,0.001644,69402.0,69401.0,0.44569191]
[1730432972696,0.01509715,69402.0,69401.0,0.44569191]
[1730432973306,0.01509715,69402.0,69401.0,0.44369191]
[1730432976012,0.01508747,69402.0,69401.0,0.44369191]
[1730432977803,0.001644,69402.0,69401.0,0.54369191]
[1730432978510,0.001644,69402.0,69401.0,0.58685482]
[1730432978960,0.001644,69402.0,69401.0,0.54369191]
[1730432979187,0.001644,69402.0,69401.0,0.60843615]
[1730432979403,0.001644,69402.0,69401.0,0.76776358]
[1730432979641,0.001644,69402.0,69401.0,0.63926615]
[1730432979850,0.001644,69402.0,69401.0,0.79856302]
[1730432980073,0.001644,69402.0,69401.0,0.73382079]
[1730432980301,0.001644,69402.0,69401.0,0.76972069]
[1730432980518,0.001644,69402.0,69401.0,0.61042181]
[1730432981177,0.001644,69402.0,69401.0,0.54569191]
[1730432981376,0.001644,69402.0,69401.0,0.61042181]
[1730432981597,0.001644,69402.0,69401.0,0.76965633]
[1730432981803,0.001644,69402.0,69401.0,0.61042181]
[1730432981983,0.001644,69402.0,69401.0,0.76965669]
[1730432982303,0.001644,69402.0,69401.0,0.60842181]
[1730432982526,0.001644,69402.0,69401.0,0.54369191]
[1730432982939,0.001644,69402.0,69401.0,0.61042181]
[1730432983160,0.001644,69402.0,69401.0,0.76963195]
[1730432983406,0.001644,69402.0,69401.0,0.73372693]
[1730432983608,0.001644,69402.0,69401.0,0.73172693]
[1730432984071,0.001644,69402.0,69401.0,0.73372693]
[1730432984294,0.001644,69402.0,69401.0,0.84154832]
[1730432984520,0.001644,69402.0,69401.0,0.81271832]
[1730432984747,0.001644,69402.0,69401.0,0.90621832]
[1730432985225,0.001644,69402.0,69401.0,0.79839693]
[1730432985462,0.001644,69402.0,69401.0,0.79639693]
[1730432986154,0.001644,69402.0,69401.0,0.79839693]
[1730432986365,0.001644,69402.0,69401.0,2.07179693]
[1730432987027,0.001644,69402.0,69401.0,2.2011826]
[1730432987469,0.001644,69402.0,69401.0,2.07179693]
[1730432987899,0.001644,69402.0,69401.0,2.07158302]
[1730432989060,0.21769576,69412.0,69411.0,0.428069]
[1730432989411,0.21769576,69419.0,69418.0,0.277054]
[1730432989681,0.21769576,69419.0,69418.0,0.56567746]
[1730432990142,0.21933976,69427.0,69426.0,0.149038]
[1730432990349,0.21933976,69427.0,69426.0,0.28749325]
[1730432990554,0.21933976,69427.0,69426.0,0.31049325]
[1730432990756,0.001644,69427.0,69426.0,0.4146762]
[1730432993227,0.001644,69427.0,69426.0,0.4196762]
[1730432994090,0.001644,69427.0,69426.0,0.67884424]
[1730432995566,0.001644,69427.0,69426.0,0.52867603]
[1730432996866,0.001644,69427.0,69417.0,0.002]
[1730432996867,0.079344,69427.0,69417.0,0.144056]
[1730432997059,0.079344,69427.0,69418.0,0.13845525]
[1730432997060,0.29421521,69422.0,69418.0,0.13845525]
[1730432997538,0.01341378,69421.0,69418.0,0.28250925]
[1730432997770,0.01341378,69421.0,69419.0,0.20161463]
[1730432997981,0.01341378,69420.0,69419.0,0.34006988]
[1730432998394,0.01341378,69423.0,69419.0,0.34006988]
[1730432998600,0.01341378,69422.0,69419.0,0.34006988]
[1730432998809,0.01341378,69421.0,69419.0,0.34006988]
[1730432999031,0.144043,69424.0,69420.0,0.06331869]
[1730432999245,0.01342282,69423.0,69420.0,0.20736869]
[1730432999457,0.01342282,69422.0,69420.0,0.20736869]
[1730432999665,0.01342282,69421.0,69420.0,0.20736869]
[1730433000078,0.01342282,69421.0,69420.0,0.06331869]
[1730433000713,0.01342733,69421.0,69420.0,0.06331869]
[1730433003305,0.21769576,69425.0,69420.0,0.06331869]
[1730433003524,0.01343165,69421.0,69420.0,0.144049]
[1730433004187,0.01343165,69421.0,69420.0,0.28250425]
[1730433004632,0.01343806,69421.0,69420.0,0.28750525]
[1730433004843,0.01343806,69421.0,69420.0,0.34506748]
[1730433005559,0.01343806,69421.0,69420.0,0.36806748]
[1730433005996,0.01508206,69421.0,69420.0,0.36806748]
[1730433008823,0.001644,69421.0,69420.0,0.56886748]
[1730433011950,0.001644,69421.0,69420.0,0.57797078]
[1730433014068,0.001644,69421.0,69420.0,0.57997078]
[1730433014309,0.001644,69421.0,69420.0,0.57797078]
[1730433016273,0.01510695,69421.0,69420.0,0.13845525]
[1730433016531,0.10880695,69421.0,69415.0,0.005]
[1730433016740,0.09126295,69420.0,69416.0,0.13845525]
[1730433016964,0.01346295,69419.0,69416.0,0.13845525]
[1730433017168,0.15751795,69418.0,69416.0,0.13845525]
[1730433017373,0.01346295,69417.0,69416.0,0.13845525]
[1730433017580,0.01346295,69417.0,69416.0,0.15743874]
[1730433017837,0.01346295,69417.0,69405.0,0.1]
[1730433018034,0.01346295,69417.0,69408.0,0.0088964]
[1730433018035,0.288121,69416.0,69408.0,0.0088964]
[1730433018265,0.288127,69414.0,69409.0,0.13845525]
[1730433018473,0.288121,69416.0,69409.0,0.13845525]
[1730433018474,0.144071,69411.0,69409.0,0.13845525]
[1730433018671,0.144071,69411.0,69410.0,0.01434553]
[1730433018873,0.01344897,69411.0,69410.0,0.15280078]
[1730433019080,0.15751797,69411.0,69410.0,0.15280078]
[1730433019539,0.15751797,69411.0,69410.0,0.13845525]
[1730433019757,0.01344897,69411.0,69410.0,0.13845525]
[1730433021557,0.15751797,69411.0,69410.0,0.13845525]
[1730433022014,0.01344897,69411.0,69410.0,0.13845525]
[1730433024565,0.15751797,69411.0,69410.0,0.13845525]
[1730433025397,0.15750147,69411.0,69410.0,0.13845525]
[1730433032286,0.15750147,69411.0,69410.0,0.14273546]
[1730433032976,0.15750147,69411.0,69410.0,0.13845525]
[1730433035146,0.15750147,69411.0,69410.0,0.14273594]
[1730433035752,0.01343247,69411.0,69410.0,0.14273594]
[1730433036066,0.288126,69414.0,69410.0,0.14273594]
[1730433036275,0.01340799,69411.0,69410.0,0.14273594]
[1730433036481,0.144068,69412.0,69410.0,0.15322884]
[1730433036688,0.01340799,69411.0,69410.0,0.15750953]
[1730433036913,0.15747699,69411.0,69410.0,0.15322884]
[1730433037117,0.15747699,69411.0,69410.0,0.15750953]
[1730433037540,0.15747699,69411.0,69410.0,0.14273594]
[1730433037962,0.15747699,69411.0,69410.0,0.13845525]
[1730433040929,0.15912099,69411.0,69410.0,0.13845525]
[1730433042612,0.01505199,69411.0,69410.0,0.13845525]
[1730433043059,0.001644,69411.0,69410.0,0.14274056]
[1730433043279,0.0150617,69411.0,69410.0,0.14274056]
[1730433045381,0.0150617,69411.0,69410.0,0.15751462]
[1730433045942,0.0150617,69411.0,69410.0,0.40958562]
[1730433046378,0.01509651,69411.0,69410.0,0.40958562]
[1730433047934,0.01509651,69411.0,69410.0,0.15751462]
[1730433048389,0.01509651,69411.0,69410.0,0.14274056]
[1730433048390,0.15916551,69411.0,69410.0,0.14274056]
[1730433048569,0.01509651,69411.0,69410.0,0.14274056]
[1730433050530,0.01509651,69411.0,69410.0,0.28681156]
[1730433050917,0.01509651,69411.0,69410.0,0.14274056]
[1730433053692,0.01508677,69411.0,69410.0,0.14274056]
[1730433057186,0.001644,69411.0,69410.0,0.14274056]
[1730433057399,0.01508563,69411.0,69410.0,0.14274056]
[1730433057613,0.001644,69411.0,69410.0,0.14274056]
[1730433058066,0.1591544,69411.0,69410.0,0.00428531]
[1730433058285,0.144085,69403.0,69402.0,0.000822]
[1730433058560,0.1575264,69403.0,69402.0,0.000822]
[1730433058772,0.1575264,69403.0,69402.0,0.00466797]
[1730433058988,0.1575264,69403.0,69402.0,0.000822]
[1730433060917,0.144085,69403.0,69402.0,0.000822]
[1730433061129,0.15751976,69403.0,69402.0,0.000822]
[1730433063576,0.15751313,69403.0,69402.0,0.000822]
[1730433063822,0.25018172,69403.0,69402.0,0.000822]
[1730433064039,0.15751313,69403.0,69402.0,0.000822]
[1730433065293,0.33431313,69403.0,69402.0,0.000822]
[1730433067250,0.33429997,69403.0,69402.0,0.000822]
[1730433067671,0.33430129,69403.0,69402.0,0.000822]
[1730433067878,0.37723345,69403.0,69402.0,0.000822]
[1730433069357,0.34770892,69403.0,69402.0,0.000822]
[1730433069571,0.39062019,69403.0,69402.0,0.000822]
[1730433069780,0.3476942,69403.0,69402.0,0.000822]
[1730433070444,0.3526942,69403.0,69402.0,0.000822]
[1730433070662,0.3392896,69403.0,69402.0,0.000822]
[1730433070883,0.3392896,69403.0,69402.0,1e-06]
[1730433070884,0.64106771,69403.0,69402.0,1e-06]
[1730433071108,0.1219,69389.0,69384.0,0.00163]
[1730433071337,0.005,69390.0,69384.0,0.00163]
[1730433071338,0.36245138,69385.0,69384.0,0.00163]
[1730433071572,0.37785598,69385.0,69384.0,0.00163]
[1730433072003,0.37585598,69385.0,69384.0,0.00163]
[1730433073164,0.36245138,69385.0,69384.0,0.00163]
[1730433073411,0.37583053,69385.0,69384.0,0.00163]
[1730433074590,0.42978421,69385.0,69384.0,0.00163]
[1730433075016,0.47268021,69385.0,69384.0,0.00163]
[1730433075459,0.42978421,69385.0,69384.0,0.00163]
[1730433078083,0.41640506,69385.0,69384.0,0.00163]
[1730433078328,0.43175753,69385.0,69384.0,0.00163]
[1730433078552,0.57021278,69385.0,69384.0,0.00163]
[1730433079007,0.56821278,69385.0,69384.0,0.00163]
[1730433081899,0.55486031,69385.0,69384.0,0.00163]
[1730433082121,0.56820649,69385.0,69384.0,0.00163]
[1730433083631,0.42975124,69385.0,69384.0,0.00163]
[1730433084056,0.45110969,69385.0,69384.0,0.00163]
[1730433084519,0.46445857,69385.0,69384.0,0.00163]
[1730433084932,0.45110969,69385.0,69384.0,0.00163]
[1730433085430,0.46446154,69385.0,69384.0,0.00163]
[1730433085667,0.46646545,69385.0,69384.0,0.00163]
[1730433086091,0.6099207,69385.0,69384.0,0.00163]
[1730433086526,0.65284033,69385.0,69384.0,0.00163]
[1730433087408,0.75784033,69385.0,69384.0,0.00163]
[1730433087634,0.75784033,69385.0,69372.0,0.00163]
[1730433087635,0.29453006,69373.0,69372.0,0.00163]
[1730433087864,0.54195613,69373.0,69372.0,0.00163]
[1730433089235,0.54199993,69373.0,69372.0,0.00163]
[1730433089470,0.51244508,69373.0,69372.0,0.00163]
[1730433089693,0.51244594,69373.0,69372.0,0.00163]
[1730433089915,0.41854413,69373.0,69372.0,0.00163]
[1730433090113,0.34264413,69373.0,69372.0,0.00163]
[1730433090392,0.32927849,69373.0,69372.0,0.00163]
[1730433092350,0.34264342,69373.0,69372.0,0.00163]
[1730433094535,0.28882397,69373.0,69372.0,0.00163]
[1730433095900,0.35475517,69373.0,69372.0,0.00163]
[1730433096590,0.32002147,69373.0,69372.0,0.00163]
[1730433096805,0.35480853,69373.0,69372.0,0.00163]
[1730433097764,0.19231472,69373.0,69372.0,0.00163]
[1730433098432,0.17893506,69373.0,69372.0,0.00163]
[1730433099057,0.15752764,69373.0,69372.0,0.00530727]
[1730433099447,0.15752764,69373.0,69372.0,0.00163]
[1730433101662,0.22298615,69373.0,69372.0,0.00163]
[1730433102570,0.15752764,69373.0,69372.0,0.00163]
[1730433103434,0.22185175,69373.0,69372.0,0.00163]
[1730433103675,0.15752764,69373.0,69372.0,0.00163]
[1730433104353,0.22186572,69373.0,69372.0,0.00163]
[1730433104612,0.37227784,69373.0,69372.0,0.00163]
[1730433104842,0.15752764,69373.0,69372.0,0.08013]
[1730433106413,0.15755469,69373.0,69372.0,0.08013]
[1730433107274,0.22790279,69373.0,69372.0,0.08013]
[1730433107506,0.22790279,69373.0,69372.0,0.00163]
[1730433107992,0.15755469,69373.0,69372.0,0.00163]
[1730433111036,0.15756156,69373.0,69372.0,0.00163]
[1730433112619,0.01341356,69373.0,69372.0,0.00163]